fUSD/lending_fUSD_20240625
["ID","MTS","AMOUNT","RATE_DAILY","PERIOD"]
[330383274,1719338016716,-3888.53,0.00022465,2]
[330383275,1719338016727,-4247.19,0.00022465,2]
[330383276,1719338016737,-500.0,0.00022465,2]
[330383277,1719338016747,-918.37,0.00022465,2]
[330383278,1719338016757,-500.0,0.00022465,2]
[330383279,1719338016766,-3324.06,0.00022465,2]
[330383280,1719338016776,-4509.77,0.00022465,2]
[330383281,1719338016786,-524.5,0.00022465,2]
[330383282,1719338016796,-770.81,0.00022465,2]
[330383283,1719338016806,-2990.81,0.00022465,2]
[330383284,1719338016816,-4435.09,0.00022465,2]
[330383285,1719338016826,-787.48,0.00022465,2]
[330383286,1719338016836,-816.41,0.00022465,2]
[330383287,1719338016846,-524.09,0.00022465,2]
[330383288,1719338016856,-588.33,0.00022465,2]
[330383289,1719338016866,-2156.33,0.00022465,2]
[330383290,1719338016876,-3040.27,0.00022465,2]
[330383291,1719338016886,-820.87,0.00022465,2]
[330383292,1719338016895,-1819.63,0.00022465,2]
[330383293,1719338016905,-615.73,0.00022465,2]
[330383294,1719338016915,-3953.78,0.00022465,2]
[330383295,1719338016926,-593.21,0.00022465,2]
[330383296,1719338016938,-752.59,0.00022465,2]
[330383297,1719338016947,-1620.29,0.00022465,2]
[330383298,1719338016958,-1102.6,0.00022465,2]
[330383299,1719338016968,-2816.47,0.00022465,2]
[330383300,1719338016978,-726.8,0.00022465,2]
[330383301,1719338016988,-500.0,0.00022465,2]
[330383302,1719338016998,-904.28,0.00022465,2]
[330383303,1719338017008,-4616.86,0.00022465,2]
[330383304,1719338017018,-2389.99,0.00022465,2]
[330383305,1719338017028,-1761.28,0.00022465,2]
[330383306,1719338017038,-1001.05,0.00022465,2]
[330383307,1719338017048,-745.04,0.00022465,2]
[330383308,1719338017057,-1342.38,0.00022465,2]
[330383309,1719338017067,-4472.18,0.00022465,2]
[330383310,1719338017077,-4354.84,0.00022465,2]
[330383311,1719338017088,-1202.61,0.00022465,2]
[330383312,1719338017098,-500.0,0.00022465,2]
[330383313,1719338017108,-956.56,0.00022465,2]
[330383314,1719338017118,-1877.02,0.00022465,2]
[330383315,1719338017128,-4593.86,0.00022465,2]
[330383316,1719338017138,-528.63,0.00022465,2]
[330383317,1719338017148,-1269.87,0.00022465,2]
[330383318,1719338017157,-500.0,0.00022465,2]
[330383319,1719338017168,-500.0,0.00022465,2]
[330383320,1719338017178,-500.0,0.00022465,2]
[330383321,1719338017190,-1489.93,0.00022465,2]
[330383322,1719338017204,-500.0,0.00022465,2]
[330383323,1719338017217,-875.21,0.00022465,2]
[330383324,1719338017228,-4713.61,0.00022465,2]
[330383325,1719338017240,-3570.88,0.00022465,2]
[330383326,1719338017250,-2157.36,0.00022465,2]
[330383327,1719338017259,-3239.05,0.00022465,2]
[330383328,1719338017269,-517.55,0.00022465,2]
[330383329,1719338017281,-3523.21,0.00022465,2]
[330383330,1719338017291,-88150.18,0.00022465,2]
[330383331,1719338017300,-724.21,0.00022465,2]
[330383332,1719338017310,-7491.31,0.00022465,2]
[330383333,1719338017319,-500.0,0.00022465,2]
[330383334,1719338017328,-1942.81,0.00022465,2]
[330383335,1719338017338,-1819.03,0.00022465,2]
[330383336,1719338017348,-504.65,0.00022465,2]
[330383337,1719338017358,-755.86,0.00022465,2]
[330383338,1719338017368,-503.8,0.00022465,2]
[330383339,1719338017377,-500.0,0.00022465,2]
[330383340,1719338017387,-500.0,0.00022465,2]
[330383341,1719338017396,-1033.56,0.00022465,2]
[330383342,1719338017406,-867.52,0.00022465,2]
[330383343,1719338017416,-3677.19,0.00022465,2]
[330383344,1719338017426,-869.1,0.00022465,2]
[330383345,1719338017436,-2597.7,0.00022465,2]
[330383346,1719338017447,-1409.52,0.00022465,2]
[330383347,1719338017457,-719.97,0.00022465,2]
[330383348,1719338017466,-500.0,0.00022465,2]
[330383349,1719338017475,-4086.22,0.00022465,2]
[330383350,1719338017485,-522.58,0.00022465,2]
[330383351,1719338017494,-504.45,0.00022465,2]
[330383352,1719338017504,-500.0,0.00022465,2]
[330383353,1719338017513,-4448.43,0.00022465,2]
[330383354,1719338017524,-1285.26,0.00022465,2]
[330383355,1719338017534,-881.49,0.00022465,2]
[330383356,1719338017543,-1817.94,0.00022465,2]
[330383357,1719338017554,-922.55,0.00022465,2]
[330383358,1719338017564,-4305.82,0.00022465,2]
[330383359,1719338017573,-5556.35,0.00022465,2]
[330383360,1719338017583,-500.0,0.00022465,2]
[330383361,1719338017593,-1507.92,0.00022465,2]
[330383362,1719338017602,-2413.43,0.00022465,2]
[330383363,1719338017612,-3590.68,0.00022465,2]
[330383364,1719338017623,-1298.55,0.00022465,2]
[330383365,1719338017632,-1317.91,0.00022465,2]
[330383366,1719338017642,-1549.61,0.00022465,2]
[330383367,1719338017652,-2001.24,0.00022465,2]
[330383368,1719338017662,-564.53,0.00022465,2]
[330383369,1719338017671,-3243.57,0.00022465,2]
[330383370,1719338017681,-1628.62,0.00022465,2]
[330383371,1719338017691,-2964.41,0.00022465,2]
[330383372,1719338017700,-733.32,0.00022465,2]
[330383373,1719338017710,-3914.84,0.00022465,2]
[330383374,1719338017719,-500.0,0.00022465,2]
[330383375,1719338017730,-3375.19,0.00022465,2]
[330383376,1719338017741,-2549.76,0.00022465,2]
[330383377,1719338017751,-971.21,0.00022465,2]
[330383378,1719338017760,-1141.9,0.00022465,2]
[330383379,1719338017770,-4437.26,0.00022465,2]
[330383380,1719338017780,-14641.98,0.00022465,2]
[330383381,1719338017790,-500.0,0.00022465,2]
[330383382,1719338017800,-716.2,0.00022465,2]
[330383383,1719338017809,-2142.83,0.00022465,2]
[330383384,1719338017819,-1706.95,0.00022465,2]
[330383385,1719338017828,-634.9419586,0.00022465,2]
[330383386,1719338017838,-1309.2,0.00022465,2]
[330383387,1719338017847,-6040.67,0.00022465,2]
[330383388,1719338017857,-500.0,0.00022465,2]
[330383389,1719338017869,-1734.08,0.00022465,2]
[330383390,1719338017879,-1799.68,0.00022465,2]
[330383391,1719338018006,-500.0,0.00022465,2]
[330383392,1719338018015,-1105.8,0.00022465,2]
[330383393,1719338018025,-955.34,0.00022465,2]
[330383394,1719338018035,-500.0,0.00022465,2]
[330383395,1719338018045,-1732.57,0.00022465,2]
[330383396,1719338018054,-2122.24,0.00022465,2]
[330383397,1719338018064,-932.92,0.00022465,2]
[330383398,1719338018073,-1579.37,0.00022465,2]
[330383399,1719338018082,-3399.27,0.00022465,2]
[330383400,1719338018092,-2440.43,0.00022465,2]
[330383401,1719338018101,-3708.7,0.00022465,2]
[330383402,1719338018111,-1254.93,0.00022465,2]
[330383403,1719338018121,-2081.22,0.00022465,2]
[330383404,1719338018131,-1071.44,0.00022465,2]
[330383405,1719338018140,-500.0,0.00022465,2]
[330383406,1719338018150,-2321.72,0.00022465,2]
[330383407,1719338018160,-1241.56,0.00022465,2]
[330383408,1719338018170,-59416.31,0.00022465,2]
[330383409,1719338018181,-565.98,0.00022465,2]
[330383410,1719338018190,-5136.03,0.00022465,2]
[330383411,1719338018202,-2376.71,0.00022465,2]
[330383412,1719338018212,-2867.83,0.00022465,2]
[330383413,1719338018221,-1989.23,0.00022465,2]
[330383414,1719338018231,-572.13,0.00022465,2]
[330383415,1719338018242,-564.08,0.00022465,2]
[330383416,1719338018252,-500.0,0.00022465,2]
[330383417,1719338018262,-500.0,0.00022465,2]
[330383418,1719338018272,-1377.37,0.00022465,2]
[330383419,1719338018283,-2476.55,0.00022465,2]
[330383420,1719338018293,-2711.7,0.00022465,2]
[330383421,1719338018303,-572.5,0.00022465,2]
[330383422,1719338018312,-500.0,0.00022465,2]
[330383423,1719338018322,-7381.85,0.00022465,2]
[330383424,1719338018332,-500.0,0.00022465,2]
[330383425,1719338018342,-3777.42,0.00022465,2]
[330383426,1719338018351,-2118.67,0.00022465,2]
[330383427,1719338018362,-3727.83,0.00022465,2]
[330383428,1719338018372,-899.15,0.00022465,2]
[330383429,1719338018382,-4739.43,0.00022465,2]
[330383430,1719338018391,-1249.51,0.00022465,2]
[330383431,1719338018400,-1714.59,0.00022465,2]
[330383432,1719338018412,-1124.92,0.00022465,2]
[330383433,1719338018421,-500.0,0.00022465,2]
[330383434,1719338018431,-7801.42,0.00022465,2]
[330383435,1719338018440,-1269.94,0.00022465,2]
[330383436,1719338018449,-1185.0,0.00022465,2]
[330383437,1719338018458,-500.0,0.00022465,2]
[330383438,1719338018467,-513.46,0.00022465,2]
[330383439,1719338018476,-756.47,0.00022465,2]
[330383440,1719338018485,-534.89,0.00022465,2]
[330383441,1719338018494,-2615.49,0.00022465,2]
[330383442,1719338018504,-646.58,0.00022465,2]
[330383443,1719338018514,-5672.8,0.00022465,2]
[330383444,1719338018523,-804.63,0.00022465,2]
[330383445,1719338018533,-1157.21,0.00022465,2]
[330383446,1719338018543,-2694.51,0.00022465,2]
[330383447,1719338018552,-662.07,0.00022465,2]
[330383448,1719338018562,-1217.03,0.00022465,2]
[330383449,1719338018571,-771.68,0.00022465,2]
[330383450,1719338018581,-500.0,0.00022465,2]
[330383451,1719338018590,-4836.5,0.00022465,2]
[330383452,1719338018599,-2626.43,0.00022465,2]
[330383453,1719338018609,-754.98,0.00022465,2]
[330383454,1719338018619,-1630.22,0.00022465,2]
[330383455,1719338018628,-2071.66,0.00022465,2]
[330383456,1719338018638,-524.31,0.00022465,2]
[330383457,1719338018647,-500.0,0.00022465,2]
[330383458,1719338018657,-781.04,0.00022465,2]
[330383459,1719338018667,-1588.79,0.00022465,2]
[330383460,1719338018676,-500.0,0.00022465,2]
[330383461,1719338018685,-1092.3,0.00022465,2]
[330383462,1719338018694,-2469.59,0.00022465,2]
[330383463,1719338018704,-1168.43,0.00022465,2]
[330383464,1719338018713,-500.0,0.00022465,2]
[330383465,1719338018722,-6611.18,0.00022465,2]
[330383466,1719338018732,-854.06,0.00022465,2]
[330383467,1719338018741,-536.71,0.00022465,2]
[330383468,1719338018751,-500.0,0.00022465,2]
[330383469,1719338018762,-987.05,0.00022465,2]
[330383470,1719338018771,-8477.0,0.00022465,2]
[330383471,1719338018781,-500.0,0.00022465,2]
[330383472,1719338018790,-500.0,0.00022465,2]
[330383473,1719338018800,-1672.78,0.00022465,2]
[330383474,1719338018810,-500.0,0.00022465,2]
[330383475,1719338018819,-500.0,0.00022465,2]
[330383476,1719338018828,-5214.8,0.00022465,2]
[330383477,1719338018838,-500.0,0.00022465,2]
[330383478,1719338018847,-996.42,0.00022465,2]
[330383479,1719338018856,-3032.63,0.00022465,2]
[330383480,1719338018866,-500.0,0.00022465,2]
[330383481,1719338018875,-3109.31,0.00022465,2]
[330383482,1719338018885,-1348.4,0.00022465,2]
[330383483,1719338018894,-650.12,0.00022465,2]
[330383484,1719338018903,-1123.41,0.00022465,2]
[330383485,1719338018912,-500.0,0.00022465,2]
[330383486,1719338018921,-732.06,0.00022465,2]
[330383487,1719338018931,-500.0,0.00022465,2]
[330383488,1719338018941,-10484.79,0.00022465,2]
[330383489,1719338018950,-1238.1,0.00022465,2]
[330383490,1719338018960,-3533.14,0.00022465,2]
[330383491,1719338018969,-500.0,0.00022465,2]
[330383492,1719338018978,-5123.32,0.00022465,2]
[330383493,1719338018987,-3632.37,0.00022465,2]
[330383494,1719338018996,-643.4863784,0.00022465,2]
[330383495,1719338019006,-4888.19,0.00022465,2]
[330383496,1719338019015,-712.46,0.00022465,2]
[330383497,1719338019024,-862.31,0.00022465,2]
[330383498,1719338019034,-269.92104983,0.00022465,2]
[330383499,1719338019043,-551.14,0.00022465,2]
[330383500,1719338019052,-500.0,0.00022465,2]
[330383501,1719338019062,-560.41,0.00022465,2]
[330383502,1719338019072,-1124.52,0.00022465,2]
[330383503,1719338019082,-2962.86,0.00022465,2]
[330383504,1719338019092,-500.0,0.00022465,2]
[330383505,1719338019101,-872.11,0.00022465,2]
[330383506,1719338019111,-3045.87,0.00022465,2]
[330383507,1719338019120,-5218.77,0.00022465,2]
[330383508,1719338019130,-425.05587533,0.00022465,2]
[330383509,1719338019140,-1050.12,0.00022465,2]
[330383510,1719338019150,-1520.45,0.00022465,2]
[330383511,1719338019160,-2187.74,0.00022465,2]
[330383512,1719338019170,-537.51,0.00022465,2]
[330383513,1719338019179,-646.32,0.00022465,2]
[330383514,1719338019190,-500.0,0.00022465,2]
[330383515,1719338019204,-2920.92,0.00022465,2]
[330383516,1719338019213,-7369.5,0.00022465,2]
[330383517,1719338019223,-1872.97,0.00022465,2]
[330383518,1719338019234,-4019.83,0.00022465,2]
[330383519,1719338019244,-154.75665037,0.00022465,2]
[330383520,1719338019253,-812.36,0.00022465,2]
[330383521,1719338019263,-570.34423766,0.00022465,2]
[330383522,1719338019273,-634.34,0.00022465,2]
[330383523,1719338019285,-6045.57,0.00022465,2]
[330383524,1719338019295,-587.96,0.00022465,2]
[330383525,1719338019304,-2739.91,0.00022465,2]
[330383526,1719338019314,-805.26,0.00022465,2]
[330383527,1719338019324,-1158.31,0.00022465,2]
[330383528,1719338019334,-1134.01,0.00022465,2]
[330383529,1719338019343,-615.9,0.00022465,2]
[330383530,1719338019353,-1656.37,0.00022465,2]
[330383531,1719338019362,-2906.26,0.00022465,2]
[330383532,1719338019372,-272.86145149,0.00022465,2]
[330383533,1719338019381,-2209.86,0.00022465,2]
[330383534,1719338019391,-500.0,0.00022465,2]
[330383535,1719338019400,-1797.61,0.00022465,2]
[330383536,1719338019410,-1052.7,0.00022465,2]
[330383537,1719338019420,-1660.97,0.00022465,2]
[330383538,1719338019434,-643.79,0.00022465,2]
[330383539,1719338019444,-500.0,0.00022465,2]
[330383540,1719338019453,-3674.69,0.00022465,2]
[330383541,1719338019464,-500.0,0.00022465,2]
[330383542,1719338019474,-18533.12,0.00022465,2]
[330383543,1719338019484,-9362.98,0.00022465,2]
[330383544,1719338019493,-521.43,0.00022465,2]
[330383545,1719338019503,-500.0,0.00022465,2]
[330383546,1719338019513,-987.45,0.00022465,2]
[330383547,1719338019523,-1828.54,0.00022465,2]
[330383548,1719338019532,-1060.9,0.00022465,2]
[330383549,1719338019541,-500.0,0.00022465,2]
[330383550,1719338019551,-1048.33,0.00022465,2]
[330383551,1719338019561,-500.0,0.00022465,2]
[330383552,1719338019570,-3489.35,0.00022465,2]
[330383553,1719338019579,-582.75,0.00022465,2]
[330383554,1719338019588,-50997.71,0.00022465,2]
[330383555,1719338019598,-1090.36,0.00022465,2]
[330383556,1719338019607,-588.44,0.00022465,2]
[330383557,1719338019617,-3826.38,0.00022465,2]
[330383558,1719338019626,-7330.4,0.00022465,2]
[330383559,1719338019635,-1076.79,0.00022465,2]
[330383560,1719338019645,-875.7,0.00022465,2]
[330383561,1719338019654,-2013.15,0.00022465,2]
[330383562,1719338019664,-1764.68,0.00022465,2]
[330383563,1719338019674,-2546.28,0.00022465,2]
[330383564,1719338019684,-500.0,0.00022465,2]
[330383565,1719338019694,-710.06,0.00022465,2]
[330383566,1719338019703,-1202.57,0.00022465,2]
[330383567,1719338019713,-2661.42,0.00022465,2]
[330383568,1719338019722,-500.0,0.00022465,2]
[330383569,1719338019731,-632.99,0.00022465,2]
[330383570,1719338019741,-2226.45,0.00022465,2]
[330383571,1719338019751,-500.0,0.00022465,2]
[330383572,1719338019760,-538.22,0.00022465,2]
[330383573,1719338019770,-575.15,0.00022465,2]
[330383574,1719338019779,-1320.08,0.00022465,2]
[330383575,1719338019789,-13097.11,0.00022465,2]
[330383576,1719338019799,-500.0,0.00022465,2]
[330383577,1719338019808,-500.0,0.00022465,2]
[330383578,1719338019817,-484.45500961,0.00022465,2]
[330383579,1719338019827,-1721.67,0.00022465,2]
[330383580,1719338019837,-1003.19,0.00022465,2]
[330383581,1719338019846,-1938.52,0.00022465,2]
[330383582,1719338019856,-2588.15,0.00022465,2]
[330383583,1719338019865,-38471.4,0.00022465,2]
[330383584,1719338019875,-2469.45,0.00022465,2]
[330383585,1719338019885,-500.0,0.00022465,2]
[330383586,1719338019894,-7195.96,0.00022465,2]
[330383587,1719338019903,-3038.22,0.00022465,2]
[330383588,1719338019913,-3940.81,0.00022465,2]
[330383589,1719338019922,-500.0,0.00022465,2]
[330383590,1719338019933,-3163.49,0.00022465,2]
[330383591,1719338019942,-860.82,0.00022465,2]
[330383592,1719338019951,-1243.76,0.00022465,2]
[330383593,1719338019960,-935.24,0.00022465,2]
[330383594,1719338019975,-39156.53,0.00022465,2]
[330383595,1719338019985,-500.0,0.00022465,2]
[330383596,1719338019995,-5532.62,0.00022465,2]
[330383597,1719338020005,-500.0,0.00022465,2]
[330383598,1719338020015,-2133.33,0.00022465,2]
[330383599,1719338020025,-500.0,0.00022465,2]
[330383600,1719338020035,-1003.49,0.00022465,2]
[330383601,1719338020045,-500.0,0.00022465,2]
[330383602,1719338020055,-804.85,0.00022465,2]
[330383603,1719338020065,-27639.02,0.00022465,2]
[330383604,1719338020075,-3599.25,0.00022465,2]
[330383605,1719338020085,-3865.6,0.00022465,2]
[330383606,1719338020095,-1591.79,0.00022465,2]
[330383607,1719338020105,-3089.03,0.00022465,2]
[330383608,1719338020115,-828.38,0.00022465,2]
[330383609,1719338020124,-500.0,0.00022465,2]
[330383610,1719338020134,-13348.12,0.00022465,2]
[330383611,1719338020143,-3823.25,0.00022465,2]
[330383612,1719338020152,-19322.86,0.00022465,2]
[330383613,1719338020161,-2767.76,0.00022465,2]
[330383614,1719338020171,-2132.96,0.00022465,2]
[330383615,1719338020181,-829.42,0.00022465,2]
[330383616,1719338020192,-768.12,0.00022465,2]
[330383617,1719338020205,-2051.61,0.00022465,2]
[330383618,1719338020215,-516.72,0.00022465,2]
[330383619,1719338020224,-500.0,0.00022465,2]
[330383620,1719338020234,-1930.49,0.00022465,2]
[330383621,1719338020244,-1106.84,0.00022465,2]
[330383622,1719338020254,-503.71176665,0.00022465,2]
[330383623,1719338020263,-3643.02,0.00022465,2]
[330383624,1719338020274,-500.0,0.00022465,2]
[330383625,1719338020284,-2716.1,0.00022465,2]
[330383626,1719338020294,-571.25,0.00022465,2]
[330383627,1719338020304,-500.0,0.00022465,2]
[330383628,1719338020314,-9367.05,0.00022465,2]
[330383629,1719338020324,-500.0,0.00022465,2]
[330383630,1719338020333,-500.0,0.00022465,2]
[330383631,1719338020343,-500.0,0.00022465,2]
[330383632,1719338020352,-658.03,0.00022465,2]
[330383633,1719338020362,-5116.79,0.00022465,2]
[330383634,1719338020373,-6152.62,0.00022465,2]
[330383635,1719338020383,-1026.1,0.00022465,2]
[330383636,1719338020392,-500.0,0.00022465,2]
[330383637,1719338020403,-1640.24,0.00022465,2]
[330383638,1719338020413,-1760.02,0.00022465,2]
[330383639,1719338020422,-235.2557331,0.00022465,2]
[330383640,1719338020432,-19689.46,0.00022465,2]
[330383641,1719338020443,-500.0,0.00022465,2]
[330383642,1719338020452,-1038.72,0.00022465,2]
[330383643,1719338020462,-3388.45,0.00022465,2]
[330383644,1719338020471,-500.0,0.00022465,2]
[330383645,1719338020481,-500.0,0.00022465,2]
[330383646,1719338020491,-709.2,0.00022465,2]
[330383647,1719338020500,-1249.47,0.00022465,2]
[330383648,1719338020510,-20168.94,0.00022465,2]
[330383649,1719338020520,-2499.52,0.00022465,2]
[330383650,1719338020530,-4133.33,0.00022465,2]
[330383651,1719338020539,-991.31,0.00022465,2]
[330383652,1719338020549,-500.0,0.00022465,2]
[330383653,1719338020558,-16464.04,0.00022465,2]
[330383654,1719338020568,-1636.71,0.00022465,2]
[330383655,1719338020577,-2511.23,0.00022465,2]
[330383656,1719338020587,-500.0,0.00022465,2]
[330383657,1719338020596,-1279.93,0.00022465,2]
[330383658,1719338020606,-500.0,0.00022465,2]
[330383659,1719338020616,-813.02,0.00022465,2]
[330383660,1719338020625,-711.6,0.00022465,2]
[330383661,1719338020634,-867.36,0.00022465,2]
[330383662,1719338020643,-635.3,0.00022465,2]
[330383663,1719338020653,-984.69,0.00022465,2]
[330383664,1719338020663,-2863.52,0.00022465,2]
[330383665,1719338020672,-1078.44,0.00022465,2]
[330383666,1719338020683,-579.91,0.00022465,2]
[330383667,1719338020692,-4519.25,0.00022465,2]
[330383668,1719338020702,-1635.81,0.00022465,2]
[330383669,1719338020712,-894.63,0.00022465,2]
[330383670,1719338020721,-511.61,0.00022465,2]
[330383671,1719338020730,-724.58,0.00022465,2]
[330383672,1719338020740,-770.48,0.00022465,2]
[330383673,1719338020750,-500.0,0.00022465,2]
[330383674,1719338020760,-500.0,0.00022465,2]
[330383675,1719338020770,-1778.16,0.00022465,2]
[330383676,1719338020780,-627.16,0.00022465,2]
[330383677,1719338020789,-500.0,0.00022465,2]
[330383678,1719338020799,-1194.74,0.00022465,2]
[330383679,1719338020808,-12811.41,0.00022465,2]
[330383680,1719338020818,-952.48,0.00022465,2]
[330383681,1719338020828,-2214.33,0.00022465,2]
[330383682,1719338020837,-250.0,0.00022465,2]
[330383683,1719338020847,-646.01,0.00022465,2]
[330383684,1719338020857,-500.0,0.00022465,2]
[330383685,1719338020866,-533.6,0.00022465,2]
[330383686,1719338020876,-1023.86,0.00022465,2]
[330383687,1719338020886,-500.0,0.00022465,2]
[330383688,1719338020895,-500.0,0.00022465,2]
[330383689,1719338020905,-6829.1,0.00022465,2]
[330383690,1719338020915,-8218.06,0.00022465,2]
[330383691,1719338020924,-539.11,0.00022465,2]
[330383692,1719338020933,-2323.75,0.00022465,2]
[330383693,1719338020943,-1104.07,0.00022465,2]
[330383694,1719338020952,-1807.94,0.00022465,2]
[330383695,1719338020961,-11065.02,0.00022465,2]
[330383696,1719338020970,-663.89,0.00022465,2]
[330383697,1719338020981,-600.35,0.00022465,2]
[330383698,1719338020991,-501.0,0.00022465,2]
[330383699,1719338021001,-522.35,0.00022465,2]
[330383700,1719338021011,-661.17,0.00022465,2]
[330383701,1719338021020,-1481.84,0.00022465,2]
[330383702,1719338021030,-5478.65,0.00022465,2]
[330383703,1719338021041,-3657.63,0.00022465,2]
[330383704,1719338021050,-886.73,0.00022465,2]
[330383705,1719338021060,-1680.53,0.00022465,2]
[330383706,1719338021069,-10088.1,0.00022465,2]
[330383707,1719338021078,-2543.7,0.00022465,2]
[330383708,1719338021088,-500.0,0.00022465,2]
[330383709,1719338021098,-2456.25,0.00022465,2]
[330383710,1719338021108,-1656.09,0.00022465,2]
[330383711,1719338021117,-2328.62,0.00022465,2]
[330383712,1719338021127,-3868.22,0.00022465,2]
[330383713,1719338021138,-1796.89,0.00022465,2]
[330383714,1719338021148,-500.0,0.00022465,2]
[330383715,1719338021158,-4014.66,0.00022465,2]
[330383716,1719338021168,-500.0,0.00022465,2]
[330383717,1719338021177,-7129.8,0.00022465,2]
[330383718,1719338021187,-3567.64,0.00022465,2]
[330383719,1719338021198,-914.75,0.00022465,2]
[330383720,1719338021209,-1821.82,0.00022465,2]
[330383721,1719338021219,-1475.68,0.00022465,2]
[330383722,1719338021228,-500.0,0.00022465,2]
[330383723,1719338021238,-2063.73,0.00022465,2]
[330383724,1719338021249,-546.57,0.00022465,2]
[330383725,1719338021259,-750.23,0.00022465,2]
[330383726,1719338021269,-559.73,0.00022465,2]
[330383727,1719338021281,-500.0,0.00022465,2]
[330383728,1719338021291,-378.0460243,0.00022465,2]
[330383729,1719338021300,-3434.69,0.00022465,2]
[330383730,1719338021310,-500.0,0.00022465,2]
[330383731,1719338021319,-14507.85,0.00022465,2]
[330383732,1719338021329,-2198.32,0.00022465,2]
[330383733,1719338021339,-1011.11,0.00022465,2]
[330383734,1719338021348,-1316.74,0.00022465,2]
[330383735,1719338021358,-887.9,0.00022465,2]
[330383736,1719338021368,-500.0,0.00022465,2]
[330383737,1719338021378,-500.0,0.00022465,2]
[330383738,1719338021388,-697.9,0.00022465,2]
[330383739,1719338021398,-38249.94,0.00022465,2]
[330383740,1719338021409,-1003.68,0.00022465,2]
[330383741,1719338021419,-500.0,0.00022465,2]
[330383742,1719338021428,-500.0,0.00022465,2]
[330383743,1719338021439,-431.47692094,0.00022465,2]
[330383744,1719338021448,-500.0,0.00022465,2]
[330383745,1719338021457,-27014.67,0.00022465,2]
[330383746,1719338021467,-1550.6,0.00022465,2]
[330383747,1719338021476,-1975.91,0.00022465,2]
[330383748,1719338021486,-4800.32,0.00022465,2]
[330383749,1719338021495,-500.0,0.00022465,2]
[330383750,1719338021504,-500.0,0.00022465,2]
[330383751,1719338021513,-726.31,0.00022465,2]
[330383752,1719338021523,-1230.61,0.00022465,2]
[330383753,1719338021532,-1578.23,0.00022465,2]
[330383754,1719338021543,-500.0,0.00022465,2]
[330383755,1719338021552,-500.0,0.00022465,2]
[330383756,1719338021561,-500.0,0.00022465,2]
[330383757,1719338021571,-3087.64,0.00022465,2]
[330383758,1719338021580,-500.0,0.00022465,2]
[330383759,1719338021590,-1806.83,0.00022465,2]
[330383760,1719338021599,-3280.0,0.00022465,2]
[330383761,1719338021608,-1791.93,0.00022465,2]
[330383762,1719338021617,-679.84,0.00022465,2]
[330383763,1719338021627,-858.99,0.00022465,2]
[330383764,1719338021636,-874.77,0.00022465,2]
[330383765,1719338021646,-709.69,0.00022465,2]
[330383766,1719338021655,-500.0,0.00022465,2]
[330383767,1719338021664,-1076.73,0.00022465,2]
[330383768,1719338021674,-3522.11,0.00022465,2]
[330383769,1719338021683,-500.0,0.00022465,2]
[330383770,1719338021692,-587.49,0.00022465,2]
[330383771,1719338021702,-500.0,0.00022465,2]
[330383772,1719338021711,-17618.37,0.00022465,2]
[330383773,1719338021720,-2768.81,0.00022465,2]